{"text_format":"1","workbook":"xlsx","n_sheets":2,"sheets":["入力用","標識※入力不要"],"not_rendered":{"charts":0,"images":0,"macros":1,"external_links":0,"defined_names":2,"comments":0,"pivot_tables":0},"unopened":[],"bounds":{"document_bytes":16777216,"sheet_cells":100000,"rows_first":2000,"rows_last":500,"rows_between":2000,"halvings":0,"cell_chars":16384,"cell_head_chars":4096},"cells_cut":0,"cells_raw":0,"read":"whole","date_system":"1900"}

{"sheet":"入力用","index":0,"n_rows":152,"n_cols":7,"rows_kept":152,"cut":false,"hidden":false,"merged":[]}
[]
[null,"酒類販売管理研修の名称","所在地","酒類販売管理研修の氏名","酒類販売管理研修受講年月日","次回研修の有効期限","研修実施団体目"]
[1,"わいんのことなら！町田店","東京都町田市１－１－１","リチャード　フィッシャーマン","2016-04-01",{"$f":"IF(E3=\"\",\"\",EDATE(E3,36)-1)","v":"2019-03-31"},"全国小売酒販組合中央会"]
[2,null,null,null,null,{"$f":"IF(E4=\"\",\"\",EDATE(E4,36)-1)","v":""}]
[3,null,null,null,null,""]
[4,null,null,null,null,""]
[5,null,null,null,null,""]
[6,null,null,null,null,""]
[7,null,null,null,null,""]
[8,null,null,null,null,""]
[9,null,null,null,null,""]
[10,null,null,null,null,""]
[11,null,null,null,null,""]
[12,null,null,null,null,""]
[13,null,null,null,null,""]
[14,null,null,null,null,""]
[15,null,null,null,null,""]
[16,null,null,null,null,""]
[17,null,null,null,null,""]
[18,null,null,null,null,""]
[19,null,null,null,null,""]
[20,null,null,null,null,""]
[21,null,null,null,null,""]
[22,null,null,null,null,""]
[23,null,null,null,null,""]
[24,null,null,null,null,""]
[25,null,null,null,null,""]
[26,null,null,null,null,""]
[27,null,null,null,null,""]
[28,null,null,null,null,""]
[29,null,null,null,null,""]
[30,null,null,null,null,""]
[31,null,null,null,null,""]
[32,null,null,null,null,""]
[33,null,null,null,null,""]
[34,null,null,null,null,""]
[35,null,null,null,null,""]
[36,null,null,null,null,""]
[37,null,null,null,null,""]
[38,null,null,null,null,""]
[39,null,null,null,null,""]
[40,null,null,null,null,""]
[41,null,null,null,null,""]
[42,null,null,null,null,""]
[43,null,null,null,null,""]
[44,null,null,null,null,""]
[45,null,null,null,null,""]
[46,null,null,null,null,""]
[47,null,null,null,null,""]
[48,null,null,null,null,""]
[49,null,null,null,null,""]
[50,null,null,null,null,""]
[51,null,null,null,null,""]
[52,null,null,null,null,""]
[53,null,null,null,null,""]
[54,null,null,null,null,""]
[55,null,null,null,null,""]
[56,null,null,null,null,""]
[57,null,null,null,null,""]
[58,null,null,null,null,""]
[59,null,null,null,null,""]
[60,null,null,null,null,""]
[61,null,null,null,null,""]
[62,null,null,null,null,""]
[63,null,null,null,null,""]
[64,null,null,null,null,""]
[65,null,null,null,null,""]
[66,null,null,null,null,{"$f":"IF(E68=\"\",\"\",EDATE(E68,36)-1)","v":""}]
[67,null,null,null,null,""]
[68,null,null,null,null,""]
[69,null,null,null,null,""]
[70,null,null,null,null,""]
[71,null,null,null,null,""]
[72,null,null,null,null,""]
[73,null,null,null,null,""]
[74,null,null,null,null,""]
[75,null,null,null,null,""]
[76,null,null,null,null,""]
[77,null,null,null,null,""]
[78,null,null,null,null,""]
[79,null,null,null,null,""]
[80,null,null,null,null,""]
[81,null,null,null,null,""]
[82,null,null,null,null,""]
[83,null,null,null,null,""]
[84,null,null,null,null,""]
[85,null,null,null,null,""]
[86,null,null,null,null,""]
[87,null,null,null,null,""]
[88,null,null,null,null,""]
[89,null,null,null,null,""]
[90,null,null,null,null,""]
[91,null,null,null,null,""]
[92,null,null,null,null,""]
[93,null,null,null,null,""]
[94,null,null,null,null,""]
[95,null,null,null,null,""]
[96,null,null,null,null,""]
[97,null,null,null,null,""]
[98,null,null,null,null,""]
[99,null,null,null,null,""]
[100,null,null,null,null,""]
[101,null,null,null,null,""]
[102,null,null,null,null,""]
[103,null,null,null,null,""]
[104,null,null,null,null,""]
[105,null,null,null,null,""]
[106,null,null,null,null,""]
[107,null,null,null,null,""]
[108,null,null,null,null,""]
[109,null,null,null,null,""]
[110,null,null,null,null,""]
[111,null,null,null,null,""]
[112,null,null,null,null,""]
[113,null,null,null,null,""]
[114,null,null,null,null,""]
[115,null,null,null,null,""]
[116,null,null,null,null,""]
[117,null,null,null,null,""]
[118,null,null,null,null,""]
[119,null,null,null,null,""]
[120,null,null,null,null,""]
[121,null,null,null,null,""]
[122,null,null,null,null,""]
[123,null,null,null,null,""]
[124,null,null,null,null,""]
[125,null,null,null,null,""]
[126,null,null,null,null,""]
[127,null,null,null,null,""]
[128,null,null,null,null,""]
[129,null,null,null,null,""]
[130,null,null,null,null,{"$f":"IF(E132=\"\",\"\",EDATE(E132,36)-1)","v":""}]
[131,null,null,null,null,""]
[132,null,null,null,null,""]
[133,null,null,null,null,""]
[134,null,null,null,null,""]
[135,null,null,null,null,""]
[136,null,null,null,null,""]
[137,null,null,null,null,""]
[138,null,null,null,null,""]
[139,null,null,null,null,""]
[140,null,null,null,null,""]
[141,null,null,null,null,""]
[142,null,null,null,null,""]
[143,null,null,null,null,""]
[144,null,null,null,null,""]
[145,null,null,null,null,""]
[146,null,null,null,null,""]
[147,null,null,null,null,""]
[148,null,null,null,null,""]
[149,null,null,null,null,""]
[150,null,null,null,null,""]

{"sheet":"標識※入力不要","index":1,"n_rows":22,"n_cols":37,"rows_kept":22,"cut":false,"hidden":false,"merged":[[21,12,24,31],[17,12,20,31],[13,12,16,31],[9,12,12,31],[5,2,8,11],[21,2,24,11],[17,2,20,11],[13,2,16,11],[9,2,12,11],[7,12,8,31],[5,12,6,31],[1,36,1,38],[2,36,2,38],[1,39,2,43],[4,39,6,43],[2,2,3,31]]}
[]
[null,null,null,null,null,null,null,null,null,null,null,null,null,null,null,null,null,null,null,null,null,null,null,null,null,null,null,null,null,null,null,null,null,null,null,null,"A 印刷番号"]
[null,null,"酒類販売管理者標識",null,null,null,null,null,null,null,null,null,null,null,null,null,null,null,null,null,null,null,null,null,null,null,null,null,null,null,null,null,null,null,null,null,1]
[]
[]
[null,null,"販売場の名称\n及び所在地",null,null,null,null,null,null,null,null,null,{"$f":"VLOOKUP(AK3,入力用!A1:J152,2,0)","v":"わいんのことなら！町田店"}]
[]
[null,null,null,null,null,null,null,null,null,null,null,null,{"$f":"VLOOKUP(AK3,入力用!A1:J152,3,0)","v":"東京都町田市１－１－１"}]
[]
[null,null,"酒類販売管理者の\n氏名",null,null,null,null,null,null,null,null,null,{"$f":"VLOOKUP(AK3,入力用!A1:J152,4,0)","v":"リチャード　フィッシャーマン"}]
[]
[]
[]
[null,null,"酒類販売管理研修\n受講年月日",null,null,null,null,null,null,null,null,null,{"$f":"VLOOKUP(AK3,入力用!A1:J152,5,0)","v":"2016-04-01"}]
[]
[]
[]
[null,null,"次回研修の\n受講期限",null,null,null,null,null,null,null,null,null,{"$f":"VLOOKUP(AK3,入力用!A1:J152,6,0)","v":"2019-03-31"}]
[]
[]
[]
[null,null,"研修実施団体名",null,null,null,null,null,null,null,null,null,{"$f":"VLOOKUP(AK3,入力用!A1:J152,7,0)","v":"全国小売酒販組合中央会"}]